Department Family,Entity,Date of Payment,Expense Type,Expense Area,Supplier,Voluntary & Community Sector,SME Class,Sole Trader,Transaction number,Purchasing Item Text,Postal Code,Amount in Sterling,Grant?
DLUHC,PINS,01/03/2024,Agency Staff,Digital Services,HAYS SPECIALIST RECRUITMENT LTD,,Large,,5106308194,Contingent Labour,NW1 2AF,"2,073.66",
DLUHC,PINS,01/03/2024,DEV Exp (AUC) Intngble Software Acq Cost,PINS Capital X085A011,HAYS SPECIALIST RECRUITMENT LTD,,Large,,5106308193,Contingent Labour,NW1 2AF,"2,212.86",
DLUHC,PINS,01/03/2024,PADS Fees & Expenses,Inspectors Costs,REDACTED,,Data Not Provided,,5106308104,PADS Fees and Expenses,CB3 0HS,"2,918.20",
DLUHC,PINS,01/03/2024,PADS Fees & Expenses,Inspectors Costs,REDACTED,,Micro,,5106308162,PADS Fees and Expenses,PO20 0HX,"1,048.26",
DLUHC,PINS,01/03/2024,PADS Fees & Expenses,Inspectors Costs,REDACTED,,Small,,5106308192,PADS Fees and Expenses,TQ6 9RG,258.00,
DLUHC,PINS,01/03/2024,PADS Fees & Expenses,Inspectors Costs,REDACTED,,Data Not Provided,,5106308100,PADS Fees and Expenses,WR10 3HA,"2,739.50",
DLUHC,PINS,01/03/2024,PADS Fees & Expenses,Inspectors Costs,REDACTED,,Data Not Provided,,5106308105,PADS Fees and Expenses,DE72 3QP,"1,924.75",
DLUHC,PINS,01/03/2024,PADS Fees & Expenses,Inspectors Costs,REDACTED,,Data Not Provided,,5106308189,PADS Fees and Expenses,EC4Y 7AR,123.60,
DLUHC,PINS,01/03/2024,PADS Fees & Expenses,Inspectors Costs,REDACTED,,Data Not Provided,,5106308189,PADS Fees and Expenses,EC4Y 7AR,"4,164.00",
DLUHC,PINS,04/03/2024,Agency Staff,Human Resources,HAYS SPECIALIST RECRUITMENT LTD,,Large,,5106308200,Contingent Labour,NW1 2AF,418.21,
DLUHC,PINS,04/03/2024,Legal Fees,Innovation & Improvement,GOVERNMENT LEGAL DEPT,,Public Bodies,,5106308198,Disbursements,WC2B 4TS,"27,735.67",
DLUHC,PINS,04/03/2024,Legal Fees,Innovation & Improvement,GOVERNMENT LEGAL DEPT,,Public Bodies,,5106308198,Fees & Charges,WC2B 4TS,"103,930.60",
DLUHC,PINS,04/03/2024,PADS Fees & Expenses,Inspectors Costs,REDACTED,,Micro,,5106308201,PADS Fees and Expenses,HG5 0BY,"1,670.54",
DLUHC,PINS,04/03/2024,PADS Fees & Expenses,Inspectors Costs,REDACTED,,Data Not Provided,,5106308107,PADS Fees and Expenses,CV21 3JN,"1,140.00",
DLUHC,PINS,04/03/2024,PADS Fees & Expenses,Inspectors Costs,REDACTED,,Micro,,5106308199,PADS Fees and Expenses,HG4 1UJ,"3,812.66",
DLUHC,PINS,04/03/2024,PADS Fees & Expenses,Inspectors Costs,REDACTED,,Small,,2100119594,PADS Fees and Expenses,RG24 8SA,"-3,267.87",
DLUHC,PINS,04/03/2024,PADS Fees & Expenses,Inspectors Costs,REDACTED,,Small,,5106308103,PADS Fees and Expenses,RG24 8SA,"3,267.87",
DLUHC,PINS,04/03/2024,PADS Fees & Expenses,Inspectors Costs,REDACTED,,Micro,,5106308196,PADS Fees and Expenses,M33 6RG,"3,830.52",
DLUHC,PINS,04/03/2024,PADS Fees & Expenses,Inspectors Costs,REDACTED,,Data Not Provided,,5106308109,PADS Fees and Expenses,LU7 3RF,"2,406.72",
DLUHC,PINS,04/03/2024,PADS Fees & Expenses,Inspectors Costs,REDACTED,,Small,,5106308202,PADS Fees and Expenses,E1 1LQ,"4,740.00",
DLUHC,PINS,04/03/2024,Payroll Services,Human Resources,CGI IT UK LIMITED,,Large,,5106308204,Payroll services 23/24  ,CF31 9AP,"5,002.02",
DLUHC,PINS,05/03/2024,Agency Staff,Finance,REED SPECIALIST RECRUITMENT LTD,,Large,,5106308275,Contingent Labour,SW20 0BA,662.44,
DLUHC,PINS,05/03/2024,Agency Staff,Resourcing & Process,REED SPECIALIST RECRUITMENT LTD,,Large,,5106308290,Contingent Labour,SW20 0BA,735.80,
DLUHC,PINS,05/03/2024,DEV Exp (AUC) Intngble Software Acq Cost,PINS Capital X085A011,tmc3 Limited,,Small,,5106308286,PINS 005.1 Web Application Testing   Bac,L18 2DA,"5,520.00",
DLUHC,PINS,05/03/2024,DEV Exp (AUC) Intngble Software Acq Cost,PINS Capital X085A011,tmc3 Limited,,Small,,5106308286,PINS 005.2 Web Application Testing   App,L18 2DA,"2,760.00",
DLUHC,PINS,05/03/2024,DEV Exp (AUC) Intngble Software Acq Cost,PINS Capital X085A011,tmc3 Limited,,Small,,5106308286,Pins 005.3 Analysis Reporting and QA,L18 2DA,"1,380.00",
DLUHC,PINS,05/03/2024,IT - Service Contracts,Digital Services,tmc3 Limited,,Small,,5106308287,SoW02 - Cyber Security as a Service  ,L18 2DA,"3,087.50",
DLUHC,PINS,05/03/2024,PADS Fees & Expenses,Inspectors Costs,REDACTED,,Micro,,5106308099,PADS Fees and Expenses,DY12 2AE,786.56,
DLUHC,PINS,05/03/2024,PADS Fees & Expenses,Inspectors Costs,REDACTED,,Micro,,5106308203,PADS Fees and Expenses,DY12 2AE,456.00,
DLUHC,PINS,05/03/2024,PADS Fees & Expenses,Inspectors Costs,REDACTED,,Data Not Provided,,2100119629,PADS Fees and Expenses,WA15 9LH,"-4,567.80",
DLUHC,PINS,05/03/2024,PADS Fees & Expenses,Inspectors Costs,REDACTED,,Data Not Provided,,5106308313,PADS Fees and Expenses,WA15 9LH,"4,567.80",
DLUHC,PINS,05/03/2024,PADS Fees & Expenses,Inspectors Costs,REDACTED,,Micro,,5106308269,PADS Fees and Expenses,TA14 6PT,"2,719.90",
DLUHC,PINS,05/03/2024,Web Services,Digital Services,ZSAH LTD,,Small,,5106308267,Hosting,SW7 3HE,"1,943.36",
DLUHC,PINS,06/03/2024,Agency Staff,Human Resources,HAYS SPECIALIST RECRUITMENT LTD,,Large,,5106308306,Contingent Labour,NW1 2AF,"1,237.79",
DLUHC,PINS,06/03/2024,Agency Staff,Human Resources,HAYS SPECIALIST RECRUITMENT LTD,,Large,,5106308307,Contingent Labour,NW1 2AF,825.19,
DLUHC,PINS,06/03/2024,Agency Staff,Human Resources,HAYS SPECIALIST RECRUITMENT LTD,,Large,,5106308308,Contingent Labour,NW1 2AF,"1,237.79",
DLUHC,PINS,06/03/2024,Agency Staff,Human Resources,HAYS SPECIALIST RECRUITMENT LTD,,Large,,5106308309,Contingent Labour,NW1 2AF,825.19,
DLUHC,PINS,06/03/2024,Agency Staff,Digital Services,HAYS SPECIALIST RECRUITMENT LTD,,Large,,5106308382,Contingent Labour,NW1 2AF,"4,375.20",
DLUHC,PINS,06/03/2024,Agency Staff,Digital Services,HAYS SPECIALIST RECRUITMENT LTD,,Large,,5106308393,Contingent Labour,NW1 2AF,"2,073.66",
DLUHC,PINS,06/03/2024,Courier Services,Finance,PARCELFORCE WORLDWIDE,,Large,,2100119644,Courier Services ,MK7 8LE,-556.12,
DLUHC,PINS,06/03/2024,Courier Services,Finance,PARCELFORCE WORLDWIDE,,Large,,5106308098,Courier Services ,MK7 8LE,556.12,
DLUHC,PINS,06/03/2024,DEV Exp (AUC) Intngble Software Acq Cost,PINS Capital X085A011,HAYS SPECIALIST RECRUITMENT LTD,,Large,,5106308381,Contingent Labour,NW1 2AF,"3,708.34",
DLUHC,PINS,06/03/2024,DEV Exp (AUC) Intngble Software Acq Cost,PINS Capital X085A011,HAYS SPECIALIST RECRUITMENT LTD,,Large,,5106308383,Contingent Labour,NW1 2AF,"1,890.29",
DLUHC,PINS,06/03/2024,DEV Exp (AUC) Intngble Software Acq Cost,PINS Capital X085A011,HAYS SPECIALIST RECRUITMENT LTD,,Large,,5106308395,Contingent Labour,NW1 2AF,"2,212.86",
DLUHC,PINS,06/03/2024,IT at cost,PINS Capital X085A011,X M A LTD,,Data Not Provided,,5106308376,Apple iPhone,NG11 7EP,851.50,
DLUHC,PINS,06/03/2024,Mobile phone costs,Digital Services,ORBIS PROTECT,,Large,,5106308377,Lone Worker Protection,UB8 1QG,"2,298.96",
DLUHC,PINS,06/03/2024,Online Database Information Retrieval,Innovation & Improvement,TOWN & COUNTRY PLANNING ASSOC,,Small,,5106308322,Town and Country Planning Journals,SW1Y 5AS,128.00,
DLUHC,PINS,06/03/2024,Online Database Information Retrieval,Innovation & Improvement,TOWN & COUNTRY PLANNING ASSOC,,Small,,5106308322,Town and Country Planning Membership,SW1Y 5AS,192.00,
DLUHC,PINS,06/03/2024,PADS Fees & Expenses,Inspectors Costs,REDACTED,,Micro,,5106308310,PADS Fees and Expenses,DY12 2AE,456.00,
DLUHC,PINS,06/03/2024,PADS Fees & Expenses,Inspectors Costs,REDACTED,,Micro,,2100119645,PADS Fees and Expenses,BB4 8TB,"-2,705.09",
DLUHC,PINS,06/03/2024,PADS Fees & Expenses,Inspectors Costs,REDACTED,,Micro,,5106308418,PADS Fees and Expenses,BB4 8TB,"2,705.09",
DLUHC,PINS,06/03/2024,Printing,Corporate Strategy & Reporting,HH Associates Limited,,Large,,5106308360,ARA Printer - ISBN and Copyright ,KT22 9DF,278.86,
DLUHC,PINS,06/03/2024,Specialist Technical Support,CP Balance,HAYS SPECIALIST RECRUITMENT LTD,,Large,,5106308380,Contingent Labour,NW1 2AF,"2,319.08",
DLUHC,PINS,07/03/2024,Agency Staff,CP Balance,HAYS SPECIALIST RECRUITMENT LTD,,Large,,5106308436,Contingent Labour,NW1 2AF,771.83,
DLUHC,PINS,07/03/2024,DEV Exp (AUC) Intngble Software Acq Cost,PINS Capital X085A011,HAYS SPECIALIST RECRUITMENT LTD,,Large,,5106308424,Contingent Labour,NW1 2AF,"3,385.08",
DLUHC,PINS,07/03/2024,DEV Exp (AUC) Intngble Software Acq Cost,PINS Capital X085A011,HAYS SPECIALIST RECRUITMENT LTD,,Large,,5106308436,Contingent Labour,NW1 2AF,"3,087.31",
DLUHC,PINS,07/03/2024,PADS Fees & Expenses,Inspectors Costs,REDACTED,,Small,,5106308408,PADS Fees and Expenses,B73 6TD,"1,757.30",
DLUHC,PINS,07/03/2024,PADS Fees & Expenses,Inspectors Costs,REDACTED,,Micro,,5106308412,PADS Fees and Expenses,DY12 2AE,456.00,
DLUHC,PINS,07/03/2024,PADS Fees & Expenses,Inspectors Costs,REDACTED,,Data Not Provided,,5106308411,PADS Fees and Expenses,WA15 9LH,"4,111.80",
DLUHC,PINS,07/03/2024,PADS Fees & Expenses,Inspectors Costs,REDACTED,,Micro,,5106308401,PADS Fees and Expenses,CT2 8DR,"3,202.60",
DLUHC,PINS,07/03/2024,PADS Fees & Expenses,Inspectors Costs,REDACTED,,Small,,5106308415,PADS Fees and Expenses,SA61 2SJ,"2,860.00",
DLUHC,PINS,08/03/2024,Agency Staff,Digital Services,HAYS SPECIALIST RECRUITMENT LTD,,Large,,5106308455,Contingent Labour,NW1 2AF,"4,375.20",
DLUHC,PINS,08/03/2024,Courier Services,Finance,PARCELFORCE WORLDWIDE,,Large,,5106308452,Courier Services ,MK7 8LE,556.12,
DLUHC,PINS,08/03/2024,PADS Fees & Expenses,Inspectors Costs,REDACTED,,Data Not Provided,,5106308451,PADS Fees and Expenses,CF14 1QB,"3,663.65",
DLUHC,PINS,08/03/2024,Vehicle hire,Inspectors Costs,ENTERPRISE RENT-A-CAR,,Large,,5106308403,Car Hire 23/24,TW20 9FB,"32,636.78",
DLUHC,PINS,11/03/2024,Mobile phone costs,Digital Services,DAISY CORPORATE SERVICES TRADING LT,,Large,,5106308547,Mobiles,BB9 5SR,"1,164.50",
DLUHC,PINS,11/03/2024,Mobile phone costs,Digital Services,DAISY CORPORATE SERVICES TRADING LT,,Large,,5106308557,MiFi,BB9 5SR,742.80,
DLUHC,PINS,11/03/2024,Mobile phone costs,Digital Services,DAISY CORPORATE SERVICES TRADING LT,,Large,,5106308566,Mobiles,BB9 5SR,"2,686.97",
DLUHC,PINS,11/03/2024,PADS Fees & Expenses,Inspectors Costs,REDACTED,,Micro,,5106308535,PADS Fees and Expenses,M32 8QU,"2,249.50",
DLUHC,PINS,11/03/2024,PADS Fees & Expenses,Inspectors Costs,REDACTED,,Micro,,5106308543,PADS Fees and Expenses,BB4 8TB,"2,555.09",
DLUHC,PINS,11/03/2024,PADS Fees & Expenses,Inspectors Costs,REDACTED,,Small,,5106308537,PADS Fees and Expenses,TR16 5TH,"1,886.85",
DLUHC,PINS,11/03/2024,PADS Fees & Expenses,Inspectors Costs,REDACTED,,Small,,2100119820,PADS Fees and Expenses,E1 1LQ,"-2,995.00",
DLUHC,PINS,11/03/2024,PADS Fees & Expenses,Inspectors Costs,REDACTED,,Small,,5106308534,PADS Fees and Expenses,E1 1LQ,"2,995.00",
DLUHC,PINS,11/03/2024,Travel and Subsistence Account,Inspectors Costs,CORPORATE TRAVEL MANAGEMENT(NORTH)L,,Small,,5106308555,Air travel,BD1 5HQ,149.22,
DLUHC,PINS,11/03/2024,Travel and Subsistence Account,Inspectors Costs,CORPORATE TRAVEL MANAGEMENT(NORTH)L,,Small,,5106308555,Hotel Fees,BD1 5HQ,2.28,
DLUHC,PINS,11/03/2024,Travel and Subsistence Account,Inspectors Costs,CORPORATE TRAVEL MANAGEMENT(NORTH)L,,Small,,5106308555,Hotel accommodation,BD1 5HQ,"71,191.60",
DLUHC,PINS,11/03/2024,Travel and Subsistence Account,Inspectors Costs,CORPORATE TRAVEL MANAGEMENT(NORTH)L,,Small,,5106308555,Rail Travel,BD1 5HQ,"40,888.10",
DLUHC,PINS,11/03/2024,Travel and Subsistence Account,Inspectors Costs,CORPORATE TRAVEL MANAGEMENT(NORTH)L,,Small,,5106308555,Web Transactions,BD1 5HQ,202.59,
DLUHC,PINS,12/03/2024,Agency Staff,Human Resources,HAYS SPECIALIST RECRUITMENT LTD,,Large,,5106308586,Contingent Labour,NW1 2AF,"1,237.79",
DLUHC,PINS,12/03/2024,Agency Staff,Human Resources,HAYS SPECIALIST RECRUITMENT LTD,,Large,,5106308591,Contingent Labour,NW1 2AF,"1,650.38",
DLUHC,PINS,12/03/2024,Agency Staff,Resourcing & Process,REED SPECIALIST RECRUITMENT LTD,,Large,,5106308621,Contingent Labour,SW20 0BA,735.80,
DLUHC,PINS,12/03/2024,Courier Services,Finance,PARCELFORCE WORLDWIDE,,Large,,5106308671,Courier Services ,MK7 8LE,455.83,
DLUHC,PINS,12/03/2024,DEV Exp (AUC) Intngble Software Acq Cost,PINS Capital X085A011,LA INTERNATIONAL COMP CONSULTANTS L,,Large,,5106308660,Contingent Labour,ST1 5UB,"14,763.00",
DLUHC,PINS,12/03/2024,DEV Exp (AUC) Intngble Software Acq Cost,PINS Capital X085A011,LA INTERNATIONAL COMP CONSULTANTS L,,Large,,5106308662,Contingent Labour,ST1 5UB,"15,540.00",
DLUHC,PINS,12/03/2024,PADS Fees & Expenses,Inspectors Costs,REDACTED,,Small,,5106308576,PADS Fees and Expenses,RH7 6RH,"3,470.00",
DLUHC,PINS,12/03/2024,PADS Fees & Expenses,Inspectors Costs,REDACTED,,Micro,,5106308570,PADS Fees and Expenses,SA67 7UP,"2,541.60",
DLUHC,PINS,12/03/2024,PADS Fees & Expenses,Inspectors Costs,REDACTED,,Data Not Provided,,5106308573,PADS Fees and Expenses,LU1 1PP,"2,142.00",
DLUHC,PINS,12/03/2024,PADS Fees & Expenses,Inspectors Costs,REDACTED,,Data Not Provided,,5106308574,PADS Fees and Expenses,LU1 1PP,"1,781.94",
DLUHC,PINS,12/03/2024,PADS Fees & Expenses,Inspectors Costs,REDACTED,,Micro,,5106308571,PADS Fees and Expenses,WR5 2AG,"4,010.27",
DLUHC,PINS,12/03/2024,PADS Fees & Expenses,Inspectors Costs,REDACTED,,Micro,,5106308575,PADS Fees and Expenses,DY12 2AE,456.00,
DLUHC,PINS,12/03/2024,PADS Fees & Expenses,Inspectors Costs,REDACTED,,Micro,,5106308637,PADS Fees and Expenses,DY12 2AE,456.00,
DLUHC,PINS,12/03/2024,PADS Fees & Expenses,Inspectors Costs,REDACTED,,Small,,5106308572,PADS Fees and Expenses,RG24 8SA,"3,264.05",
DLUHC,PINS,12/03/2024,PADS Fees & Expenses,Inspectors Costs,REDACTED,,Data Not Provided,,5106308569,PADS Fees and Expenses,S36 6HT,"1,580.00",
DLUHC,PINS,12/03/2024,PADS Fees & Expenses,Inspectors Costs,REDACTED,,Data Not Provided,,5106308579,PADS Fees and Expenses,SO22 6RT,"3,412.38",
DLUHC,PINS,12/03/2024,PADS Fees & Expenses,Inspectors Costs,REDACTED,,Data Not Provided,,5106308577,PADS Fees and Expenses,IP10 0ET,"2,961.80",
DLUHC,PINS,12/03/2024,Rent,Change Portfolio Workstreams,Science Research Foundation,,Small,,5106308568,12-month contract: 04/09/2023-03/09/2024,BS1 6QH,"17,400.00",
DLUHC,PINS,12/03/2024,Training,Human Resources,Ernst & Young LLP,,Large,,5106308653,Senior Management Coaching ,SE1 2AF,367.67,
DLUHC,PINS,12/03/2024,Training,Digital Services,KPMG LLP (CSL),,Large,,5106308630,Management: Foundation Programme ,E14 5GL,814.25,
DLUHC,PINS,13/03/2024,Advertising,Operations Group 2,PeopleScout Limited,,Large,,5106308541,Recruitment Advertising,W1T 7RQ,"2,058.00",
DLUHC,PINS,13/03/2024,Agency Staff,Digital Services,HAYS SPECIALIST RECRUITMENT LTD,,Large,,5106308676,Contingent Labour,NW1 2AF,"4,375.20",
DLUHC,PINS,13/03/2024,Agency Staff,Digital Services,HAYS SPECIALIST RECRUITMENT LTD,,Large,,5106308677,Contingent Labour,NW1 2AF,"4,375.20",
DLUHC,PINS,13/03/2024,Agency Staff,Finance,REED SPECIALIST RECRUITMENT LTD,,Large,,5106308684,Contingent Labour,SW20 0BA,662.44,
DLUHC,PINS,13/03/2024,Conferences and Meeting Facilities,Inspectors Costs,CALDER CONFERENCES LIMITED,,Small,,5106308735,Venue Hire,LS16 6RF,"30,453.60",
DLUHC,PINS,13/03/2024,DEV Exp (AUC) Intngble Software Acq Cost,PINS Capital X085A011,HAYS SPECIALIST RECRUITMENT LTD,,Large,,5106308681,Contingent Labour,NW1 2AF,"3,385.08",
DLUHC,PINS,13/03/2024,DEV Exp (AUC) Intngble Software Acq Cost,PINS Capital X085A011,HAYS SPECIALIST RECRUITMENT LTD,,Large,,5106308682,Contingent Labour,NW1 2AF,"2,362.86",
DLUHC,PINS,13/03/2024,DEV Exp (AUC) Intngble Software Acq Cost,PINS Capital X085A011,HAYS SPECIALIST RECRUITMENT LTD,,Large,,5106308683,Contingent Labour,NW1 2AF,"4,635.42",
DLUHC,PINS,13/03/2024,DEV Exp (AUC) Intngble Software Acq Cost,PINS Capital X085A011,Kin&Carta Partnerships Uk Ltd,,Micro,,5106308694,SoW029 Appeals Back Office Jan - Mar 202,N1 9BE,"177,858.00",
DLUHC,PINS,13/03/2024,DEV Exp (AUC) Intngble Software Acq Cost,PINS Capital X085A011,Kin&Carta Partnerships Uk Ltd,,Micro,,5106308695,SoW028 Applications Back Office Jan Mar,N1 9BE,"177,293.60",
DLUHC,PINS,13/03/2024,DEV Exp (AUC) Intngble Software Acq Cost,PINS Capital X085A011,Kin&Carta Partnerships Uk Ltd,,Micro,,5106308696,SoW026 Appeals Front Office Jan - Mar 20,N1 9BE,"56,712.00",
DLUHC,PINS,13/03/2024,DEV Exp (AUC) Intngble Software Acq Cost,PINS Capital X085A011,Kin&Carta Partnerships Uk Ltd,,Micro,,5106308697,SoW027 Applications Front Office Jan   M,N1 9BE,"90,420.00",
DLUHC,PINS,13/03/2024,IT Maintenance,Change Portfolio Workstreams,Konica Minolta Business Solutions (,,Large,,5106308699,"Securely cleanse, removal & printer dona",SS14 3AR,450.00,
DLUHC,PINS,13/03/2024,IT Maintenance,Change Portfolio Workstreams,Konica Minolta Business Solutions (,,Large,,5106308700,"Securely cleanse, removal & printer dona",SS14 3AR,450.00,
DLUHC,PINS,13/03/2024,IT Maintenance,Change Portfolio Workstreams,Konica Minolta Business Solutions (,,Large,,5106308701,"Securely cleanse, removal & printer dona",SS14 3AR,450.00,
DLUHC,PINS,13/03/2024,IT Maintenance,Change Portfolio Workstreams,Konica Minolta Business Solutions (,,Large,,5106308702,"Securely cleanse, removal & printer dona",SS14 3AR,450.00,
DLUHC,PINS,13/03/2024,IT Maintenance,Change Portfolio Workstreams,Konica Minolta Business Solutions (,,Large,,5106308703,"Securely cleanse, removal & printer dona",SS14 3AR,450.00,
DLUHC,PINS,13/03/2024,IT Maintenance,Change Portfolio Workstreams,Konica Minolta Business Solutions (,,Large,,5106308704,"Securely cleanse, removal & printer dona",SS14 3AR,450.00,
DLUHC,PINS,13/03/2024,IT Maintenance,Change Portfolio Workstreams,Konica Minolta Business Solutions (,,Large,,5106308705,"Securely cleanse, removal & printer dona",SS14 3AR,450.00,
DLUHC,PINS,13/03/2024,Office Supplies,Change Portfolio Workstreams,Science Research Foundation,,Small,,5106308675,Incidental costs,BS1 6QH,300.00,
DLUHC,PINS,13/03/2024,PADS Fees & Expenses,Inspectors Costs,REDACTED,,Micro,,2100119880,PADS Fees and Expenses,RH20 3LY,"-2,505.00",
DLUHC,PINS,13/03/2024,PADS Fees & Expenses,Inspectors Costs,REDACTED,,Micro,,5106308679,PADS Fees and Expenses,RH20 3LY,"2,505.00",
DLUHC,PINS,13/03/2024,PADS Fees & Expenses,Inspectors Costs,REDACTED,,Micro,,5106308680,PADS Fees and Expenses,RH20 3LY,"1,176.45",
DLUHC,PINS,13/03/2024,Physical Storage,Finance,Restore PLC,,Large,,5106308710,Offsite Storage 2023/2024,RH1 5DY,942.95,
DLUHC,PINS,13/03/2024,Software Licences,Digital Services,HORNBILL SERVICE MANAGEMENT LTD,,Medium,,5106308685,Premier Success Plan Yr 1,EC2A 4NE,"3,600.00",
DLUHC,PINS,13/03/2024,Software Licences,Digital Services,HORNBILL SERVICE MANAGEMENT LTD,,Medium,,5106308686,Licenses Yr 1,EC2A 4NE,"27,519.55",
DLUHC,PINS,13/03/2024,Specialist Technical Support,CP Balance,HAYS SPECIALIST RECRUITMENT LTD,,Large,,5106308678,Contingent Labour,NW1 2AF,"3,865.14",
DLUHC,PINS,14/03/2024,Agency Staff,Human Resources,HAYS SPECIALIST RECRUITMENT LTD,,Large,,5106308754,Contingent Labour,NW1 2AF,"1,650.38",
DLUHC,PINS,14/03/2024,Agency Staff,Digital Services,HAYS SPECIALIST RECRUITMENT LTD,,Large,,5106308803,Contingent Labour,NW1 2AF,414.73,
DLUHC,PINS,14/03/2024,Agency Staff,Digital Services,HAYS SPECIALIST RECRUITMENT LTD,,Large,,5106308803,Contingent Labour,NW1 2AF,"1,658.93",
DLUHC,PINS,14/03/2024,Conferences and Meeting Facilities,Director of Operations,CALDER CONFERENCES LIMITED,,Small,,5106308749,Venue Hire,LS16 6RF,"2,475.00",
DLUHC,PINS,14/03/2024,DEV Exp (AUC) Intngble Software Acq Cost,PINS Capital X085A011,HAYS SPECIALIST RECRUITMENT LTD,,Large,,5106308802,Contingent Labour,NW1 2AF,"2,212.86",
DLUHC,PINS,14/03/2024,DEV Exp (AUC) Intngble Software Acq Cost,PINS Capital X085A011,Kin&Carta Partnerships Uk Ltd,,Micro,,5106308784,SoW033 ODW Feb - Mar 2024,N1 9BE,"101,706.00",
DLUHC,PINS,14/03/2024,DEV Exp (AUC) Intngble Software Acq Cost,PINS Capital X085A011,Kin&Carta Partnerships Uk Ltd,,Micro,,5106308798,SoW032 Appeals Back Office,N1 9BE,"15,196.50",
DLUHC,PINS,14/03/2024,DEV Exp (AUC) Intngble Software Acq Cost,PINS Capital X085A011,Kin&Carta Partnerships Uk Ltd,,Micro,,5106308798,SoW032 Appeals Front Office,N1 9BE,"15,196.50",
DLUHC,PINS,14/03/2024,DEV Exp (AUC) Intngble Software Acq Cost,PINS Capital X085A011,Kin&Carta Partnerships Uk Ltd,,Micro,,5106308798,SoW032 Applications Back Office,N1 9BE,"15,196.50",
DLUHC,PINS,14/03/2024,DEV Exp (AUC) Intngble Software Acq Cost,PINS Capital X085A011,Kin&Carta Partnerships Uk Ltd,,Micro,,5106308798,SoW032 Applications Front Office,N1 9BE,"15,196.50",
DLUHC,PINS,14/03/2024,PADS Fees & Expenses,Inspectors Costs,REDACTED,,Data Not Provided,,5106308752,PADS Fees and Expenses,NE66 1UW,"1,795.07",
DLUHC,PINS,14/03/2024,PADS Fees & Expenses,Inspectors Costs,REDACTED,,Micro,,5106308773,PADS Fees and Expenses,RH20 3LY,"2,505.00",
DLUHC,PINS,14/03/2024,PADS Fees & Expenses,Inspectors Costs,REDACTED,,Micro,,5106308747,PADS Fees and Expenses,BH15 1HH,"3,409.07",
DLUHC,PINS,14/03/2024,Subscriptions,Human Resources,Employers Network For Equality&Incl,,Small,,5106308765,Enei Community Membership  ,N5 2EF,"5,940.00",
DLUHC,PINS,15/03/2024,Agency Staff,CP Balance,HAYS SPECIALIST RECRUITMENT LTD,,Large,,5106308859,Contingent Labour,NW1 2AF,771.83,
DLUHC,PINS,15/03/2024,DEV Exp (AUC) Intngble Software Acq Cost,PINS Capital X085A011,HAYS SPECIALIST RECRUITMENT LTD,,Large,,5106308859,Contingent Labour,NW1 2AF,"3,087.31",
DLUHC,PINS,15/03/2024,PADS Fees & Expenses,Inspectors Costs,REDACTED,,Small,,5106308821,PADS Fees and Expenses,SR8 3NR,"5,774.25",
DLUHC,PINS,15/03/2024,PADS Fees & Expenses,Inspectors Costs,REDACTED,,Micro,,5106308818,PADS Fees and Expenses,LL54 5BS,"1,343.70",
DLUHC,PINS,15/03/2024,PADS Fees & Expenses,Inspectors Costs,REDACTED,,Small,,5106308813,PADS Fees and Expenses,E1 1LQ,"2,995.00",
DLUHC,PINS,15/03/2024,Software Licences,Digital Services,PHOENIX SOFTWARE,,Medium,,5106308820,Adobe Acrobat Licenses  ,YO42 1NS,564.84,
DLUHC,PINS,18/03/2024,PADS Fees & Expenses,Inspectors Costs,REDACTED,,Data Not Provided,,5106308917,PADS Fees and Expenses,CV21 3JN,"3,161.05",
DLUHC,PINS,18/03/2024,PADS Fees & Expenses,Inspectors Costs,REDACTED,,Small,,5106308919,PADS Fees and Expenses,B73 6TD,"2,592.10",
DLUHC,PINS,18/03/2024,PADS Fees & Expenses,Inspectors Costs,REDACTED,,Micro,,5106308920,PADS Fees and Expenses,SL5 9EA,"1,458.00",
DLUHC,PINS,18/03/2024,PADS Fees & Expenses,Inspectors Costs,REDACTED,,Micro,,5106308921,PADS Fees and Expenses,SL5 9EA,"1,368.00",
DLUHC,PINS,18/03/2024,PADS Fees & Expenses,Inspectors Costs,REDACTED,,Micro,,5106308922,PADS Fees and Expenses,SL5 9EA,"2,159.28",
DLUHC,PINS,19/03/2024,Agency Staff,Finance,REED SPECIALIST RECRUITMENT LTD,,Large,,5106308964,Contingent Labour,SW20 0BA,662.44,
DLUHC,PINS,19/03/2024,Agency Staff,Finance,REED SPECIALIST RECRUITMENT LTD,,Large,,5106308967,Contingent Labour,SW20 0BA,"1,764.00",
DLUHC,PINS,19/03/2024,PADS Fees & Expenses,Inspectors Costs,REDACTED,,Micro,,5106308960,PADS Fees and Expenses,PO20 0HX,996.78,
DLUHC,PINS,19/03/2024,PADS Fees & Expenses,Inspectors Costs,REDACTED,,Micro,,5106308924,PADS Fees and Expenses,HX7 7LS,802.45,
DLUHC,PINS,19/03/2024,PADS Fees & Expenses,Inspectors Costs,REDACTED,,Micro,,5106308938,PADS Fees and Expenses,BH15 1HH,"3,081.99",
DLUHC,PINS,20/03/2024,DEV Exp (AUC) Intngble Software Acq Cost,PINS Capital X085A011,HAYS SPECIALIST RECRUITMENT LTD,,Large,,5106309071,Contingent Labour,NW1 2AF,"2,212.86",
DLUHC,PINS,20/03/2024,PADS Fees & Expenses,Inspectors Costs,REDACTED,,Micro,,5106309003,PADS Fees and Expenses,WR13 6QP,"3,092.20",
DLUHC,PINS,21/03/2024,Agency Staff,Digital Services,HAYS SPECIALIST RECRUITMENT LTD,,Large,,5106309008,Contingent Labour,NW1 2AF,"4,375.20",
DLUHC,PINS,21/03/2024,Agency Staff,Digital Services,HAYS SPECIALIST RECRUITMENT LTD,,Large,,5106309009,Contingent Labour,NW1 2AF,"4,375.20",
DLUHC,PINS,21/03/2024,Agency Staff,CP Balance,HAYS SPECIALIST RECRUITMENT LTD,,Large,,5106309113,Contingent Labour,NW1 2AF,771.83,
DLUHC,PINS,21/03/2024,DEV Exp (AUC) Intngble Software Acq Cost,PINS Capital X085A011,HAYS SPECIALIST RECRUITMENT LTD,,Large,,5106309102,Contingent Labour,NW1 2AF,"4,635.42",
DLUHC,PINS,21/03/2024,DEV Exp (AUC) Intngble Software Acq Cost,PINS Capital X085A011,HAYS SPECIALIST RECRUITMENT LTD,,Large,,5106309103,Contingent Labour,NW1 2AF,"3,385.08",
DLUHC,PINS,21/03/2024,DEV Exp (AUC) Intngble Software Acq Cost,PINS Capital X085A011,HAYS SPECIALIST RECRUITMENT LTD,,Large,,5106309104,Contingent Labour,NW1 2AF,"2,362.86",
DLUHC,PINS,21/03/2024,DEV Exp (AUC) Intngble Software Acq Cost,PINS Capital X085A011,HAYS SPECIALIST RECRUITMENT LTD,,Large,,5106309113,Contingent Labour,NW1 2AF,"3,087.31",
DLUHC,PINS,21/03/2024,DEV Exp (AUC) Intngble Software Acq Cost,PINS Capital X085A011,Meister.works ltd,,Micro,,5106309095,User Research Services,SW1Y 4LB,560.00,
DLUHC,PINS,21/03/2024,DEV Exp (AUC) Intngble Software Acq Cost,PINS Capital X085A011,Meister.works ltd,,Micro,,5106309096,User Research Services,SW1Y 4LB,580.00,
DLUHC,PINS,21/03/2024,"IT - PC, Network & Hardware",Digital Services,X M A LTD,,Data Not Provided,,5106309077,Urban Armour MS Surface P,NG11 7EP,530.21,
DLUHC,PINS,21/03/2024,"IT - PC, Network & Hardware",Digital Services,X M A LTD,,Data Not Provided,,5106309077,Surface Slim Pens & covers,NG11 7EP,"2,202.02",
DLUHC,PINS,21/03/2024,"IT - PC, Network & Hardware",Digital Services,X M A LTD,,Data Not Provided,,5106309077,Apple USB C to Lightning Cables 1m ,NG11 7EP,87.18,
DLUHC,PINS,21/03/2024,"IT - PC, Network & Hardware",Digital Services,X M A LTD,,Data Not Provided,,5106309087,Hardware & Hardware Services,NG11 7EP,"2,199.60",
DLUHC,PINS,21/03/2024,"IT - PC, Network & Hardware",Digital Services,X M A LTD,,Data Not Provided,,5106309089,Hardware & Hardware Services,NG11 7EP,359.94,
DLUHC,PINS,21/03/2024,IT at cost,PINS Capital X085A011,X M A LTD,,Data Not Provided,,5106309077,MS Laptop 5s ,NG11 7EP,"7,399.74",
DLUHC,PINS,21/03/2024,IT at cost,PINS Capital X085A011,X M A LTD,,Data Not Provided,,5106309077,MS Laptop 5s ,NG11 7EP,"7,817.52",
DLUHC,PINS,21/03/2024,IT Maintenance,Digital Services,X M A LTD,,Data Not Provided,,5106309087,Hardware & Hardware Services,NG11 7EP,"1,833.00",
DLUHC,PINS,21/03/2024,IT Systems Testing & Auditing,Digital Services,PHOENIX SOFTWARE,,Medium,,5106309084,Sapphire Tenable 24-25,YO42 1NS,"3,058.98",
DLUHC,PINS,21/03/2024,PADS Fees & Expenses,Inspectors Costs,REDACTED,,Small,,5106309088,PADS Fees and Expenses,RG41 3HL,"1,883.40",
DLUHC,PINS,21/03/2024,Specialist Technical Support,CP Balance,HAYS SPECIALIST RECRUITMENT LTD,,Large,,5106309105,Contingent Labour,NW1 2AF,"3,478.63",
DLUHC,PINS,21/03/2024,Steady State Service Provision,Human Resources,TOTAL CONFLICT MANAGEMENT LTD,,Micro,,5106308959,Mediation Services,N1 0QH,"2,640.00",
DLUHC,PINS,22/03/2024,Agency Staff,Digital Services,HAYS SPECIALIST RECRUITMENT LTD,,Large,,5106309171,Contingent Labour,NW1 2AF,"2,073.66",
DLUHC,PINS,22/03/2024,Conferences and Meeting Facilities,Inspectors Costs,CALDER CONFERENCES LIMITED,,Small,,5106309138,Venue Hire,LS16 6RF,"3,135.00",
DLUHC,PINS,22/03/2024,IT - Service Contracts,Digital Services,DLUHC,,Public Bodies,,5106308036,Q3 MS Unified Support,HP2 4XN,"-7,568.82",
DLUHC,PINS,22/03/2024,IT at cost,PINS Capital X085A011,X M A LTD,,Data Not Provided,,5106309146,MS Surface Hub Cart,NG11 7EP,"1,328.00",
DLUHC,PINS,22/03/2024,IT at cost,PINS Capital X085A011,X M A LTD,,Data Not Provided,,5106309146,"Surface Hub 3 50""",NG11 7EP,"7,299.00",
DLUHC,PINS,22/03/2024,Legal Fees,Innovation & Improvement,DLUHC,,Public Bodies,,5106309170,Legal Services Q2-Q4 2023-2024,HP2 4XN,"179,828.93",
DLUHC,PINS,22/03/2024,PADS Fees & Expenses,Inspectors Costs,REDACTED,,Small,,5106309166,PADS Fees and Expenses,BH14 8RX,"3,153.95",
DLUHC,PINS,22/03/2024,PADS Fees & Expenses,Inspectors Costs,REDACTED,,Small,,2100120088,PADS Fees and Expenses,WR9 0QE,"-3,517.73",
DLUHC,PINS,22/03/2024,PADS Fees & Expenses,Inspectors Costs,REDACTED,,Small,,5106309141,PADS Fees and Expenses,WR9 0QE,"3,517.73",
DLUHC,PINS,25/03/2024,PADS Fees & Expenses,Inspectors Costs,REDACTED,,Data Not Provided,,5106309147,PADS Fees and Expenses,DE23 8DP,"2,192.35",
DLUHC,PINS,25/03/2024,PADS Fees & Expenses,Inspectors Costs,REDACTED,,Small,,5106309234,PADS Fees and Expenses,TQ6 9RG,"4,098.60",
DLUHC,PINS,25/03/2024,PADS Fees & Expenses,Inspectors Costs,REDACTED,,Data Not Provided,,5106309235,PADS Fees and Expenses,WR10 3HA,"2,978.00",
DLUHC,PINS,25/03/2024,PADS Fees & Expenses,Inspectors Costs,REDACTED,,Micro,,5106309262,PADS Fees and Expenses,BH15 1HH,"2,498.25",
DLUHC,PINS,26/03/2024,Agency Staff,Finance,REED SPECIALIST RECRUITMENT LTD,,Large,,5106309280,Contingent Labour,SW20 0BA,"1,411.20",
DLUHC,PINS,26/03/2024,Agency Staff,Resourcing & Process,REED SPECIALIST RECRUITMENT LTD,,Large,,5106309288,Contingent Labour,SW20 0BA,735.80,
DLUHC,PINS,26/03/2024,Agency Staff,Finance,REED SPECIALIST RECRUITMENT LTD,,Large,,5106309293,Contingent Labour,SW20 0BA,662.44,
DLUHC,PINS,26/03/2024,PADS Fees & Expenses,Inspectors Costs,REDACTED,,Small,,5106309275,PADS Fees and Expenses,ST21 6AJ,"3,526.08",
DLUHC,PINS,26/03/2024,PADS Fees & Expenses,Inspectors Costs,REDACTED,,Small,,5106309273,PADS Fees and Expenses,WR9 0QE,"3,559.86",
DLUHC,PINS,27/03/2024,Agency Staff,Digital Services,HAYS SPECIALIST RECRUITMENT LTD,,Large,,5106309323,Contingent Labour,NW1 2AF,"4,375.20",
DLUHC,PINS,27/03/2024,Agency Staff,Innovation & Improvement,HAYS SPECIALIST RECRUITMENT LTD,,Large,,5106309343,Contingent Labour,NW1 2AF,576.00,
DLUHC,PINS,27/03/2024,Agency Staff,Innovation & Improvement,REED SPECIALIST RECRUITMENT LTD,,Large,,5106309345,Contingent Labour,SW20 0BA,721.14,
DLUHC,PINS,27/03/2024,Agency Staff,Innovation & Improvement,REED SPECIALIST RECRUITMENT LTD,,Large,,5106309346,Contingent Labour,SW20 0BA,721.14,
DLUHC,PINS,27/03/2024,Courier Services,Finance,PARCELFORCE WORLDWIDE,,Large,,5106309322,Courier Services ,MK7 8LE,436.14,
DLUHC,PINS,27/03/2024,Courier Services,Finance,PARCELFORCE WORLDWIDE,,Large,,5106309336,Courier Services ,MK7 8LE,755.07,
DLUHC,PINS,27/03/2024,DEV Exp (AUC) Intngble Software Acq Cost,PINS Capital X085A011,HAYS SPECIALIST RECRUITMENT LTD,,Large,,2100120398,Contingent Labour,NW1 2AF,"-3,859.14",
DLUHC,PINS,27/03/2024,DEV Exp (AUC) Intngble Software Acq Cost,PINS Capital X085A011,HAYS SPECIALIST RECRUITMENT LTD,,Large,,5106309328,Contingent Labour,NW1 2AF,"3,859.14",
DLUHC,PINS,27/03/2024,DEV Exp (AUC) Intngble Software Acq Cost,PINS Capital X085A011,HAYS SPECIALIST RECRUITMENT LTD,,Large,,5106309335,Contingent Labour,NW1 2AF,"1,037.42",
DLUHC,PINS,27/03/2024,DEV Exp (AUC) Intngble Software Acq Cost,PINS Capital X085A011,HAYS SPECIALIST RECRUITMENT LTD,,Large,,5106309335,Contingent Labour,NW1 2AF,"1,037.44",
DLUHC,PINS,27/03/2024,DEV Exp (AUC) Intngble Software Acq Cost,PINS Capital X085A011,HAYS SPECIALIST RECRUITMENT LTD,,Large,,5106309337,Contingent Labour,NW1 2AF,"3,385.08",
DLUHC,PINS,27/03/2024,DEV Exp (AUC) Intngble Software Acq Cost,PINS Capital X085A011,HAYS SPECIALIST RECRUITMENT LTD,,Large,,5106309339,Contingent Labour,NW1 2AF,"1,890.29",
DLUHC,PINS,27/03/2024,IT at cost,PINS Capital X085A011,X M A LTD,,Data Not Provided,,5106309333,MS Surface Pro 9,NG11 7EP,"5,220.00",
DLUHC,PINS,27/03/2024,IT at cost,PINS Capital X085A011,X M A LTD,,Data Not Provided,,5106309333,MS Surface Laptop 5s,NG11 7EP,"10,145.12",
DLUHC,PINS,27/03/2024,PADS Fees & Expenses,Inspectors Costs,REDACTED,,Micro,,5106309359,PADS Fees and Expenses,GL6 0SA,"1,573.10",
DLUHC,PINS,27/03/2024,PADS Fees & Expenses,Inspectors Costs,REDACTED,,Micro,,5106309315,PADS Fees and Expenses,M33 6RG,"3,262.20",
DLUHC,PINS,27/03/2024,PADS Fees & Expenses,Inspectors Costs,REDACTED,,Data Not Provided,,5106308927,PADS Fees and Expenses,LU7 3RF,"2,940.30",
DLUHC,PINS,27/03/2024,Specialist Technical Support,CP Balance,HAYS SPECIALIST RECRUITMENT LTD,,Large,,5106309338,Contingent Labour,NW1 2AF,"3,865.14",
DLUHC,PINS,28/03/2024,Agency Staff,Human Resources,HAYS SPECIALIST RECRUITMENT LTD,,Large,,5106309408,Contingent Labour,NW1 2AF,"2,062.98",
DLUHC,PINS,28/03/2024,Conferences and Meeting Facilities,Human Resources,CALDER CONFERENCES LIMITED,,Small,,5106309456,Inspector Conference Venue Hire,LS16 6RF,"57,687.49",
DLUHC,PINS,28/03/2024,DEV Exp (AUC) Intngble Software Acq Cost,PINS Capital X085A011,HAYS SPECIALIST RECRUITMENT LTD,,Large,,5106309426,Contingent Labour,NW1 2AF,"4,635.42",
DLUHC,PINS,28/03/2024,PADS Fees & Expenses,Inspectors Costs,REDACTED,,Micro,,5106309404,PADS Fees and Expenses,TA14 6PT,"2,347.95",
DLUHC,PINS,28/03/2024,PADS Fees & Expenses,Inspectors Costs,REDACTED,,Small,,5106309418,PADS Fees and Expenses,WS13 7DH,"1,661.45",
DLUHC,PINS,28/03/2024,Payroll Services,Human Resources,CGI IT UK LIMITED,,Large,,5106309406,Payroll services 23/24  ,CF31 9AP,"5,129.38",
DLUHC,PINS,28/03/2024,Training,Digital Services,Ernst & Young LLP,,Large,,5106309454,Executive Coaching  ,SE1 2AF,367.67,
DLUHC,PINS,28/03/2024,Training,Director of Strategy,PDP COMPANIES LTD,,Small,,5106309455,FOI Practitioner Training for Planning ,SW9 6DE,"6,426.00",
